bitfinex/quotes_SOLUSD_20230120
["timestamp","ask_amount","ask_price","bid_price","bid_amount"]
[1674231613999,19.64,21.54,21.53,34.84]
[1674231614833,19.64,21.54,21.528,44.85]
[1674231617165,19.64,21.54,21.528,10.0]
[1674231617363,19.64,21.54,21.524,34.85]
[1674231617892,19.64,21.54,21.527,124.0324]
[1674231618082,17.0,21.539,21.527,114.0324]
[1674231618734,17.0,21.539,21.52,112.8384]
[1674231618735,19.64,21.54,21.522,34.85]
[1674231619140,19.64,21.54,21.521,44.86]
[1674231620203,19.64,21.54,21.524,17.0]
[1674231622729,19.64,21.54,21.525,10.0]
[1674231624389,19.64,21.54,21.524,17.0]
[1674231624601,17.0,21.539,21.522,34.85]
[1674231625044,10.0,21.538,21.521,10.0]
[1674231625228,17.0,21.539,21.521,10.0]
[1674231625652,17.0,21.539,21.522,34.85]
[1674231625872,17.0,21.539,21.521,44.86]
[1674231626192,19.64,21.54,21.521,44.86]
[1674231626511,17.0,21.539,21.523,10.0]
[1674231626723,17.0,21.539,21.523,44.85]
[1674231627036,48.20940144,21.54,21.524,17.0]
[1674231627440,48.20940144,21.54,21.525,10.0]
[1674231628486,17.0,21.539,21.525,10.0]
[1674231628913,45.56940144,21.539,21.525,10.0]
[1674231630416,45.56940144,21.539,21.523,10.0]
[1674231631256,45.56940144,21.539,21.521,44.86]
[1674231631591,50.67550144,21.539,21.521,10.0]
[1674231631889,50.67550144,21.539,21.522,34.85]
[1674231632079,10.0,21.538,21.521,44.86]
[1674231632286,19.64,21.53,21.521,44.86]
[1674231632493,19.64,21.53,21.521,10.0]
[1674231635446,19.64,21.53,21.52,34.86]
[1674231635660,19.64,21.53,21.512,34.87]
[1674231635868,51.51743515,21.529,21.509,44.88]
[1674231636194,66.62353515,21.529,21.509,44.88]
[1674231636508,68.51743515,21.528,21.509,44.88]
[1674231636721,10.0,21.527,21.509,44.88]
[1674231636914,17.0,21.526,21.509,44.88]
[1674231637126,19.64,21.52,21.509,44.88]
[1674231637668,19.64,21.52,21.509,10.0]
[1674231639023,19.64,21.52,21.51,17.0]
[1674231639749,19.64,21.52,21.509,10.0]
[1674231640293,19.64,21.52,21.51,17.0]
[1674231640482,51.51743515,21.525,21.51,17.0]
[1674231640698,5.1061,21.529,21.511,10.0]
[1674231641036,19.64,21.52,21.508,10.0]
[1674231641227,19.64,21.52,21.508,44.88]
[1674231641437,19.64,21.52,21.508,10.0]
[1674231643033,19.64,21.52,21.508,44.88]
[1674231643227,19.64,21.52,21.508,10.0]
[1674231643438,17.0,21.519,21.508,10.0]
[1674231643650,68.51743515,21.519,21.508,10.0]
[1674231643962,51.51743515,21.518,21.508,10.0]
[1674231647133,51.51743515,21.518,21.506,10.0]
[1674231648169,51.51743515,21.518,21.507,17.0]
[1674231648500,19.64,21.52,21.507,17.0]
[1674231648698,19.64,21.52,21.509,10.0]
[1674231651554,17.0,21.519,21.509,10.0]
[1674231652267,17.0,21.519,21.508,10.0]
[1674231652579,68.51743515,21.519,21.508,10.0]
[1674231654169,51.51743515,21.519,21.508,10.0]
[1674231657008,19.64,21.52,21.508,10.0]
[1674231660574,17.0,21.519,21.508,10.0]
[1674231660781,19.64,21.52,21.508,10.0]
[1674231662568,19.64,21.52,21.471,186.98566755]
[1674231662569,17.0,21.519,21.499,34.89]
[1674231662772,19.64,21.51,21.499,34.89]
[1674231664965,19.64,21.51,21.497,34.9]
[1674231665176,19.64,21.51,21.496,44.9]
[1674231665387,19.64,21.51,21.496,10.0]
[1674231665811,17.0,21.509,21.496,10.0]
[1674231666339,33.44247753,21.509,21.496,10.0]
[1674231669091,17.0,21.508,21.496,10.0]
[1674231669487,50.44247753,21.508,21.496,10.0]
[1674231670345,50.44247753,21.508,21.494,10.0]
[1674231670666,19.64,21.5,21.491,10.0]
[1674231671072,5.1061,21.507,21.491,10.0]
[1674231671395,19.64,21.51,21.492,34.9]
[1674231671592,19.64,21.51,21.493,10.0]
[1674231671803,19.64,21.51,21.495,10.0]
[1674231672026,19.64,21.51,21.496,51.9]
[1674231672451,19.64,21.51,21.497,10.0]
[1674231672668,19.64,21.51,21.498,51.89]
[1674231672854,19.64,21.51,21.498,34.89]
[1674231673064,19.64,21.51,21.499,10.0]
[1674231678870,17.0,21.509,21.499,10.0]
[1674231679269,33.84576588,21.508,21.499,10.0]
[1674231679478,17.0,21.507,21.497,10.0]
[1674231679906,50.84576588,21.507,21.497,10.0]
[1674231680551,33.84576588,21.507,21.497,10.0]
[1674231680862,19.64,21.51,21.497,10.0]
[1674231681478,19.64,21.51,21.497,44.9]
[1674231682461,19.64,21.51,21.499,10.0]
[1674231682655,118.7395,21.517,21.499,44.89]
[1674231683496,17.0,21.515,21.499,44.89]
[1674231683820,118.7395,21.517,21.499,44.89]
[1674231684015,118.7395,21.517,21.5,17.0]
[1674231684231,118.7395,21.517,21.501,10.0]
[1674231685822,17.0,21.516,21.501,10.0]
[1674231690439,19.46,21.52,21.501,10.0]
[1674231690656,19.46,21.52,21.502,34.89]
[1674231690972,19.46,21.52,21.501,10.0]
[1674231692025,27.0,21.519,21.501,10.0]
[1674231692211,19.64,21.51,21.501,10.0]
[1674231696337,10.0,21.517,21.501,10.0]
[1674231696550,17.0,21.516,21.501,10.0]
[1674231696876,17.0,21.517,21.501,10.0]
[1674231699487,5.1061,21.518,21.501,10.0]
[1674231699704,17.0,21.517,21.501,10.0]
[1674231703689,14.75,21.51,21.498,34.89]
[1674231704031,17.0,21.509,21.497,115.7792]
[1674231704426,33.84576588,21.509,21.497,115.7792]
[1674231704636,14.75,21.51,21.497,115.7792]
[1674231704949,14.75,21.51,21.499,10.0]
[1674231706436,14.75,21.51,21.5,34.89]
[1674231706855,14.75,21.51,21.499,44.89]
[1674231711401,5.1061,21.518,21.499,44.89]
[1674231711594,17.0,21.517,21.5,17.0]
[1674231711799,5.1061,21.518,21.5,17.0]
[1674231712025,14.77,21.52,21.501,10.0]
[1674231712220,14.77,21.52,21.502,51.89]
[1674231712431,14.77,21.52,21.503,10.0]
[1674231712653,14.77,21.52,21.504,51.88]
[1674231712872,14.77,21.52,21.505,10.0]
[1674231713080,14.77,21.52,21.506,17.0]
[1674231713393,14.77,21.52,21.507,10.0]
[1674231713607,14.77,21.52,21.508,17.0]
[1674231713816,14.77,21.52,21.509,44.88]
[1674231714007,14.77,21.52,21.509,34.88]
[1674231714218,14.77,21.52,21.508,34.88]
[1674231714434,14.77,21.52,21.509,17.0]
[1674231714647,14.77,21.52,21.508,17.0]
[1674231715499,14.77,21.52,21.508,51.88]
[1674231716121,14.77,21.52,21.509,10.0]
[1674231716326,14.77,21.52,21.511,10.0]
[1674231716528,14.77,21.52,21.512,17.0]
[1674231716957,33.84576588,21.526,21.512,17.0]
[1674231717167,14.69,21.53,21.513,44.87]
[1674231717380,14.69,21.53,21.514,17.0]
[1674231717595,115.4142,21.535,21.515,10.0]
[1674231717806,115.4142,21.535,21.516,148.9955]
[1674231718020,115.4142,21.535,21.518,10.0]
[1674231718227,146.95826588,21.538,21.519,51.86]
[1674231718435,146.95826588,21.538,21.52,10.0]
[1674231718644,146.95826588,21.538,21.521,17.0]
[1674231718862,10.0,21.537,21.521,17.0]
[1674231719266,33.84576588,21.536,21.52,10.0]
[1674231720210,10.0,21.535,21.52,10.0]
[1674231720534,14.62,21.53,21.519,34.86]
[1674231720751,17.0,21.529,21.5,14.72]
[1674231721074,10.0,21.528,21.507,129.6526]
[1674231721285,14.7,21.52,21.507,129.6526]
[1674231722539,17.0,21.519,21.507,129.6526]
[1674231723074,14.7,21.52,21.507,129.6526]
[1674231724632,14.7,21.52,21.508,17.0]
[1674231726518,14.7,21.52,21.507,129.6526]
[1674231727280,14.7,21.52,21.508,51.88]
[1674231727490,10.0,21.526,21.509,10.0]
[1674231727675,33.84576588,21.527,21.51,51.87]
[1674231728332,17.0,21.526,21.511,10.0]
[1674231731457,14.7,21.52,21.509,44.88]
[1674231736536,14.7,21.52,21.51,17.0]
[1674231736751,33.84576588,21.528,21.512,10.0]
[1674231736965,33.84576588,21.528,21.513,51.87]
[1674231737181,14.75,21.53,21.513,51.87]
[1674231737685,14.75,21.53,21.514,10.0]
[1674231737888,14.75,21.53,21.515,51.87]
[1674231738092,14.75,21.53,21.516,10.0]
[1674231738305,14.75,21.53,21.517,51.86]
[1674231740000,14.75,21.53,21.517,34.86]
[1674231740215,14.75,21.53,21.516,10.0]
[1674231742848,19.62,21.53,21.516,10.0]
[1674231743164,19.62,21.53,21.517,17.0]
[1674231743769,19.62,21.53,21.516,10.0]
[1674231743980,17.0,21.529,21.516,10.0]
[1674231748224,19.62,21.53,21.516,10.0]
[1674231748840,19.62,21.53,21.517,34.86]
[1674231750438,19.62,21.53,21.516,10.0]
[1674231753147,17.0,21.529,21.516,10.0]
[1674231756750,72.52289265,21.529,21.515,34.87]
[1674231756964,72.52289265,21.529,21.514,10.0]
[1674231757274,77.62899265,21.529,21.514,10.0]
[1674231759382,60.62899265,21.529,21.514,10.0]
[1674231760727,5.1061,21.529,21.515,51.87]
[1674231760945,169.10289265,21.538,21.515,51.87]
[1674231761167,169.10289265,21.538,21.516,10.0]
[1674231761368,5.1061,21.537,21.517,34.86]
[1674231761565,19.63,21.53,21.518,10.0]
[1674231764009,55.52289265,21.536,21.519,17.0]
[1674231764220,5.1061,21.537,21.52,34.86]
[1674231764413,5.1061,21.537,21.521,10.0]
[1674231765375,17.0,21.536,21.523,10.0]
[1674231765683,17.0,21.536,21.523,9.93391403]
[1674231766940,17.0,21.536,21.521,44.86]
[1674231767144,14.69,21.53,21.5,14.63]
[1674231767467,72.52289265,21.529,21.516,108.8711]
[1674231767872,55.52289265,21.528,21.516,108.8711]
[1674231768090,17.0,21.527,21.516,108.8711]
[1674231770536,55.52289265,21.528,21.517,10.0]
[1674231771887,14.69,21.53,21.517,10.0]
[1674231772647,5.1061,21.537,21.518,34.86]
[1674231772952,5.1061,21.537,21.519,17.0]
[1674231773160,5.1061,21.537,21.52,44.86]
[1674231773690,5.1061,21.537,21.521,10.0]
[1674231773879,5.1061,21.537,21.522,34.85]
[1674231774734,5.1061,21.537,21.523,10.0]
[1674231774945,5.1061,21.537,21.524,34.85]
[1674231775366,17.0,21.536,21.524,34.85]
[1674231781267,60.62899265,21.537,21.524,34.85]
[1674231781268,55.52289265,21.537,21.524,34.85]
[1674231781587,14.72,21.54,21.525,17.0]
[1674231781766,14.72,21.54,21.526,34.85]
[1674231781977,14.72,21.54,21.527,17.0]
[1674231782187,14.72,21.54,21.528,34.84]
[1674231782612,14.72,21.54,21.529,10.0]
[1674231782820,14.72,21.54,21.53,34.84]
[1674231783465,14.72,21.54,21.529,10.0]
[1674231783682,14.72,21.54,21.53,34.84]
[1674231784932,14.72,21.54,21.528,10.0]
[1674231785134,48.59108693,21.54,21.528,10.0]
[1674231785343,48.59108693,21.54,21.528,44.84]
[1674231789870,33.87108693,21.54,21.528,44.84]
[1674231790077,33.87108693,21.54,21.529,17.0]
[1674231790294,33.87108693,21.54,21.53,44.84]
[1674231791135,33.87108693,21.54,21.532,10.0]
[1674231791345,33.87108693,21.54,21.533,34.84]
[1674231791562,117.0854,21.549,21.534,10.0]
[1674231792000,33.87108693,21.548,21.534,10.0]
[1674231792526,33.87108693,21.548,21.535,17.0]
[1674231793659,33.87108693,21.548,21.536,34.83]
[1674231793870,33.87108693,21.548,21.535,17.0]
[1674231794075,33.87108693,21.548,21.537,10.0]
[1674231794508,33.87108693,21.548,21.538,17.0]
[1674231795137,33.87108693,21.548,21.537,10.0]
[1674231796181,33.87108693,21.548,21.538,17.0]
[1674231798172,33.87108693,21.548,21.537,10.0]
[1674231798505,33.87108693,21.548,21.536,10.0]
[1674231798924,33.87108693,21.548,21.534,10.0]
[1674231799138,10.0,21.547,21.532,44.84]
[1674231799342,33.87108693,21.548,21.532,10.0]
[1674231799668,33.87108693,21.546,21.532,10.0]
[1674231801129,33.87108693,21.546,21.532,44.84]
[1674231801339,33.87108693,21.546,21.532,10.0]
[1674231803442,33.87108693,21.546,21.533,17.0]
[1674231803657,33.87108693,21.546,21.533,51.84]
[1674231803863,33.87108693,21.546,21.534,10.0]
[1674231804205,33.87108693,21.546,21.535,17.0]
[1674231805446,33.87108693,21.546,21.534,10.0]
[1674231808090,33.87108693,21.546,21.535,17.0]
[1674231808920,33.87108693,21.546,21.536,10.0]
[1674231809133,33.87108693,21.546,21.537,17.0]
[1674231809458,33.87108693,21.546,21.536,10.0]
[1674231810921,33.87108693,21.546,21.538,10.0]
[1674231811138,130.5522,21.56,21.539,17.0]
[1674231811452,163.1363573,21.56,21.54,44.83]
[1674231811759,143.3808573,21.559,21.542,10.0]
[1674231812159,32.5841573,21.559,21.543,17.0]
[1674231812369,32.5841573,21.559,21.542,10.0]
[1674231812808,37.6902573,21.559,21.542,10.0]
[1674231812999,10.0,21.558,21.54,10.0]
[1674231813209,14.69,21.55,21.54,10.0]
[1674231813424,14.69,21.55,21.539,10.0]
[1674231816364,47.2741573,21.55,21.531,44.84]
[1674231816785,17.0,21.549,21.531,10.0]
[1674231817127,32.5841573,21.548,21.531,10.0]
[1674231817434,17.0,21.547,21.531,10.0]
[1674231817830,32.5841573,21.546,21.531,10.0]
[1674231818271,17.0,21.545,21.531,10.0]
[1674231818694,49.5841573,21.545,21.531,10.0]
[1674231818892,32.5841573,21.545,21.531,10.0]
[1674231823854,32.5841573,21.545,21.531,44.84]
[1674231829724,19.7961,21.55,21.536,10.0]
[1674231829939,14.69,21.55,21.536,10.0]
[1674231831320,32.5841573,21.549,21.531,10.0]
[1674231831533,17.0,21.548,21.531,10.0]
[1674231831839,47.6902573,21.547,21.531,10.0]
[1674231832058,14.72,21.54,21.53,10.0]
[1674231832246,14.72,21.54,21.528,10.0]
[1674231832457,17.0,21.539,21.522,34.85]
[1674231832669,17.0,21.539,21.522,44.85]
[1674231833090,52.2041573,21.54,21.527,10.0]
[1674231834359,32.5841573,21.54,21.527,10.0]
[1674231834889,32.5841573,21.545,21.529,10.0]
[1674231835108,17.0,21.544,21.529,10.0]
[1674231835507,32.5841573,21.545,21.529,10.0]
[1674231836159,32.5841573,21.545,21.531,10.0]
[1674231837438,32.5841573,21.545,21.533,10.0]
[1674231839626,49.35129253,21.552,21.535,10.0]
[1674231839840,117.7705,21.556,21.536,34.83]
[1674231839841,150.3546573,21.556,21.536,34.83]
[1674231840052,150.3546573,21.556,21.536,51.83]
[1674231840263,150.3546573,21.556,21.537,10.0]
[1674231840477,150.3546573,21.556,21.538,130.5363]
[1674231840678,150.3546573,21.556,21.539,10.0]
[1674231841531,150.3546573,21.556,21.541,10.0]
[1674231841933,32.5841573,21.556,21.542,17.0]
[1674231842589,32.5841573,21.556,21.543,10.0]
[1674231842798,32.5841573,21.556,21.544,17.0]
[1674231844460,32.5841573,21.556,21.545,10.0]
[1674231845640,32.5841573,21.556,21.546,17.0]
[1674231846478,32.5841573,21.556,21.545,10.0]
[1674231846902,81.93544983,21.556,21.541,10.0]
[1674231847223,20.0,21.555,21.541,10.0]
[1674231847621,32.5841573,21.554,21.541,10.0]
[1674231847830,37.0,21.553,21.541,10.0]
[1674231848271,32.5841573,21.552,21.541,10.0]
[1674231848583,20.0,21.551,21.541,10.0]
[1674231851745,20.0,21.551,21.541,8.5]
[1674231852356,20.0,21.551,21.542,17.0]
[1674231852571,52.5841573,21.558,21.543,10.0]
[1674231853525,32.5841573,21.557,21.543,10.0]
[1674231853720,20.0,21.556,21.543,8.0]
[1674231854979,20.0,21.556,21.545,10.0]
[1674231856259,20.0,21.556,21.545,8.0]
[1674231856671,20.0,21.556,21.546,17.0]
[1674231858036,20.0,21.556,21.543,8.0]
[1674231858037,52.5841573,21.556,21.543,8.0]
[1674231858245,101.93544983,21.556,21.541,8.5]
[1674231858469,10.0,21.555,21.541,8.0]
[1674231858677,20.0,21.554,21.541,8.0]
[1674231858885,52.5841573,21.554,21.541,8.0]
[1674231859105,81.93544983,21.553,21.541,8.0]
[1674231859295,20.0,21.552,21.541,8.0]
[1674231859505,52.5841573,21.552,21.538,113.5363]
[1674231859729,32.5841573,21.551,21.538,113.5363]
[1674231859943,20.0,21.55,21.538,113.5363]
[1674231860471,32.5841573,21.549,21.538,113.5363]
[1674231860784,20.0,21.548,21.539,8.0]
[1674231863209,20.0,21.548,21.539,7.5]
[1674231863519,20.0,21.552,21.539,7.5]
[1674231863721,17.0,21.551,21.539,7.5]
[1674231864040,52.5841573,21.55,21.539,7.5]
[1674231864456,32.5841573,21.549,21.539,7.5]
[1674231864667,20.0,21.548,21.539,7.5]
[1674231865844,20.0,21.548,21.539,7.0]
[1674231868345,20.0,21.548,21.539,6.5]
[1674231872457,20.0,21.548,21.539,6.0]
[1674231873382,20.0,21.548,21.541,10.0]
[1674231873589,20.0,21.555,21.541,10.0]
[1674231873810,20.0,21.555,21.542,17.0]
[1674231874138,52.5841573,21.555,21.541,10.0]
[1674231875175,101.93544983,21.555,21.541,10.0]
[1674231875580,101.93544983,21.555,21.538,113.5363]
[1674231875791,19.49,21.55,21.538,113.5363]
[1674231876346,52.5841573,21.549,21.538,113.5363]
[1674231876743,32.5841573,21.548,21.538,113.5363]
[1674231876956,17.0,21.547,21.529,44.84]
[1674231877161,20.0,21.546,21.529,10.0]
[1674231877374,52.5841573,21.546,21.529,10.0]
[1674231877582,49.5841573,21.545,21.529,10.0]
[1674231877789,20.0,21.544,21.529,10.0]
[1674231877997,17.0,21.543,21.529,10.0]
[1674231878212,20.0,21.542,21.529,10.0]
[1674231878424,14.63,21.54,21.529,10.0]
[1674231878750,20.0,21.539,21.528,10.0]
[1674231878969,52.5841573,21.539,21.528,10.0]
[1674231879602,32.5841573,21.538,21.528,10.0]
[1674231881354,32.5841573,21.538,21.524,34.85]
[1674231881568,37.0,21.537,21.522,44.85]
[1674231881801,37.0,21.537,21.522,10.0]
[1674231881989,32.5841573,21.536,21.522,10.0]
[1674231882321,20.0,21.535,21.522,10.0]
[1674231884667,52.5841573,21.535,21.522,10.0]
[1674231884856,14.58,21.53,21.522,10.0]
[1674231885069,20.0,21.529,21.522,10.0]
[1674231888004,20.0,21.529,21.52,10.0]
[1674231888746,17.0,21.528,21.511,10.0]
[1674231889379,17.0,21.528,21.512,34.87]
[1674231889600,17.0,21.528,21.513,10.0]
[1674231890123,42.5841573,21.527,21.513,10.0]
[1674231890320,14.63,21.52,21.513,10.0]
[1674231890531,20.0,21.519,21.513,10.0]
[1674231890737,20.0,21.519,21.511,10.0]
[1674231891054,20.0,21.519,21.507,10.0]
[1674231893589,20.0,21.519,21.506,119.7672]
[1674231897368,20.0,21.519,21.504,34.88]
[1674231897576,17.0,21.518,21.504,34.88]
[1674231897793,20.0,21.519,21.506,34.88]
[1674231897989,20.0,21.519,21.506,10.0]
[1674231899242,20.0,21.519,21.506,44.88]
[1674231905136,20.0,21.519,21.506,34.88]
[1674231905350,20.0,21.519,21.503,10.0]
[1674231905351,17.0,21.518,21.504,34.88]
[1674231905559,17.0,21.518,21.506,34.88]
[1674231906702,17.0,21.518,21.504,34.88]
[1674231906908,64.51934574,21.518,21.504,34.88]
[1674231907340,64.51934574,21.518,21.506,44.88]
[1674231907775,64.51934574,21.518,21.506,10.0]
[1674231909035,20.0,21.517,21.503,10.0]
[1674231909243,17.0,21.516,21.503,10.0]
[1674231909578,20.0,21.515,21.503,10.0]
[1674231912314,20.0,21.517,21.503,10.0]
[1674231912704,20.0,21.519,21.503,10.0]
[1674231913251,17.0,21.518,21.503,10.0]
[1674231913574,20.0,21.517,21.503,10.0]
[1674231915355,19.66,21.52,21.503,10.0]
[1674231915669,20.0,21.519,21.505,10.0]
[1674231915869,20.0,21.519,21.507,10.0]
[1674231916083,110.7142,21.527,21.508,34.88]
[1674231916489,17.0,21.525,21.509,10.0]
[1674231916709,17.0,21.525,21.511,10.0]
[1674231916908,110.7142,21.527,21.511,10.0]
[1674231917661,20.0,21.525,21.511,10.0]
[1674231918517,17.0,21.524,21.511,10.0]
[1674231918722,20.0,21.523,21.511,10.0]
[1674231920924,20.0,21.525,21.511,10.0]
[1674231921141,17.0,21.524,21.511,10.0]
[1674231921461,20.0,21.523,21.511,10.0]
[1674231922286,20.0,21.525,21.511,10.0]
[1674231923653,67.51934574,21.525,21.511,10.0]
[1674231924717,67.51934574,21.525,21.508,34.88]
[1674231924916,19.66,21.52,21.5,34.89]
[1674231925124,37.0,21.519,21.5,34.89]
[1674231925667,20.0,21.519,21.5,34.89]
[1674231926068,17.0,21.518,21.5,34.89]
[1674231926380,20.0,21.517,21.5,34.89]
[1674231927030,17.0,21.516,21.5,34.89]
[1674231927234,20.0,21.515,21.5,34.89]
[1674231932178,20.0,21.519,21.502,34.89]
[1674231932390,17.0,21.518,21.502,34.89]
[1674231932594,20.0,21.517,21.498,34.89]
[1674231933014,17.0,21.516,21.5,34.89]
[1674231933335,20.0,21.515,21.5,34.89]
[1674231936281,20.0,21.519,21.5,34.89]
[1674231936485,17.0,21.518,21.5,34.89]
[1674231936819,20.0,21.517,21.5,34.89]
[1674231938614,17.0,21.516,21.5,34.89]
[1674231938922,20.0,21.515,21.5,34.89]
[1674231939455,19.66,21.52,21.504,17.0]
[1674231939456,20.0,21.519,21.504,17.0]
[1674231940485,20.0,21.519,21.502,34.89]
[1674231941127,17.0,21.518,21.5,34.89]
[1674231941319,20.0,21.517,21.5,34.89]
[1674231942808,20.0,21.517,21.498,34.89]
[1674231943131,20.0,21.517,21.5,34.89]
[1674231947868,17.0,21.516,21.5,34.89]
[1674231948082,20.0,21.515,21.5,34.89]
[1674231950273,20.0,21.519,21.5,34.89]
[1674231950600,17.0,21.518,21.5,34.89]
[1674231950796,20.0,21.517,21.5,34.89]
[1674231953339,20.0,21.519,21.5,34.89]
[1674231953517,17.0,21.518,21.5,34.89]
[1674231953723,20.0,21.517,21.5,34.89]
[1674231957102,17.0,21.516,21.5,34.89]
[1674231957313,20.0,21.515,21.5,34.89]
[1674231957749,20.0,21.515,21.498,34.89]
[1674231958492,14.75,21.51,21.498,34.89]
[1674231958703,20.0,21.509,21.496,119.379]
[1674231964579,20.0,21.509,21.498,17.0]
[1674231964788,20.0,21.509,21.498,51.89]
[1674231965006,20.0,21.519,21.498,51.89]
[1674231965219,25.1061,21.519,21.499,10.0]
[1674231965403,25.1061,21.519,21.5,34.89]
[1674231965612,25.1061,21.519,21.501,10.0]
[1674231967413,17.0,21.518,21.501,10.0]
[1674231967624,20.0,21.517,21.501,10.0]
[1674231967839,17.0,21.516,21.501,10.0]
[1674231968027,20.0,21.515,21.501,10.0]
[1674231968864,20.0,21.518,21.502,17.0]
[1674231969079,20.0,21.518,21.503,10.0]
[1674231969497,20.0,21.518,21.504,17.0]
[1674231970348,20.0,21.519,21.504,17.0]
[1674231970763,20.0,21.519,21.504,51.88]
[1674231970990,20.0,21.519,21.505,114.4761]
[1674231971214,20.0,21.519,21.506,61.88]
[1674231971808,20.0,21.526,21.506,61.88]
[1674231972153,20.0,21.526,21.507,10.0]
[1674231972344,20.0,21.526,21.508,51.88]
[1674231972970,20.0,21.526,21.509,10.0]
[1674231973185,14.65,21.52,21.507,10.0]
[1674231973493,20.0,21.519,21.507,10.0]
[1674231973919,20.0,21.519,21.508,34.88]
[1674231974554,20.0,21.519,21.509,17.0]
[1674231976145,20.0,21.519,21.508,17.0]
[1674231976333,20.0,21.519,21.507,10.0]
[1674231978146,20.0,21.519,21.506,163.6146]
[1674231978344,20.0,21.519,21.506,118.7346]
[1674231979398,20.0,21.519,21.5,34.89]
[1674231979617,17.0,21.518,21.5,34.89]
[1674231979813,20.0,21.517,21.5,34.89]
[1674231982129,20.0,21.517,21.505,10.0]
[1674231982318,20.0,21.519,21.505,10.0]
[1674231985596,17.0,21.518,21.505,10.0]
[1674231985809,20.0,21.517,21.505,10.0]
[1674231986764,20.0,21.519,21.505,10.0]
[1674231988119,20.0,21.519,21.506,17.0]
[1674231988347,20.0,21.519,21.507,10.0]
[1674231988554,20.0,21.519,21.508,17.0]
[1674231988756,20.0,21.519,21.509,10.0]
[1674232001070,20.0,21.519,21.51,17.0]
[1674232001489,20.0,21.526,21.51,17.0]
[1674232002328,20.0,21.526,21.511,10.0]
[1674232004421,17.0,21.525,21.511,10.0]
[1674232004629,20.0,21.524,21.511,10.0]
[1674232004873,49.35129253,21.528,21.511,10.0]
[1674232005062,14.67,21.52,21.511,10.0]
[1674232005290,20.0,21.519,21.511,10.0]
[1674232014951,20.0,21.519,21.512,51.87]
[1674232015261,20.0,21.518,21.513,10.0]
[1674232015472,28.27057775,21.527,21.513,10.0]